[Event "Early-Titled-Tuesday-Blitz-March-12-2024"]
[Site "Chess.com"]
[Date "2024.03.12"]
[Round "8"]
[White "Blitzstream"]
[Black "AlexPapasimakopoulos"]
[Result "1-0"]
[WhiteElo "2808"]
[BlackElo "2710"]
[TimeControl "180+1"]
[EndTime "9:24:09 PDT"]
[Termination "Blitzstream won by resignation"]

1. e4 {[%clk 0:03:00.9]} 1... e6 {[%clk 0:02:57.5]} 2. c4 {[%clk 0:03:00.2]}
2... d5 {[%clk 0:02:53.8]} 3. cxd5 {[%clk 0:03:01.1]} 3... exd5 {[%clk
0:02:53.3]} 4. exd5 {[%clk 0:03:02]} 4... Nf6 {[%clk 0:02:53]} 5. Nc3 {[%clk
0:03:02.9]} 5... Nxd5 {[%clk 0:02:53.3]} 6. Nf3 {[%clk 0:03:03.1]} 6... Be7
{[%clk 0:02:52.8]} 7. d4 {[%clk 0:03:03.4]} 7... O-O {[%clk 0:02:52.4]} 8. Bc4
{[%clk 0:03:03.8]} 8... Nb6 {[%clk 0:02:51]} 9. Bb3 {[%clk 0:03:03.8]} 9... Bg4
{[%clk 0:02:48]} 10. h3 {[%clk 0:03:02.5]} 10... Bh5 {[%clk 0:02:47.3]} 11. g4
{[%clk 0:02:57.6]} 11... Bg6 {[%clk 0:02:47]} 12. Ne5 {[%clk 0:02:58.2]} 12...
c5 {[%clk 0:02:44.4]} 13. dxc5 {[%clk 0:02:34.5]} 13... Qxd1+ {[%clk 0:02:42.6]}
14. Bxd1 {[%clk 0:02:35.4]} 14... Bxc5 {[%clk 0:02:42.3]} 15. O-O {[%clk
0:02:30.8]} 15... Nc6 {[%clk 0:02:30.2]} 16. Nxc6 {[%clk 0:02:28.9]} 16... bxc6
{[%clk 0:02:31.1]} 17. Bf3 {[%clk 0:02:28]} 17... Bd4 {[%clk 0:02:26.3]} 18. Rd1
{[%clk 0:02:05.8]} 18... Be5 {[%clk 0:02:16.9]} 19. Bxc6 {[%clk 0:01:58.6]}
19... Rac8 {[%clk 0:02:15.9]} 20. Bg2 {[%clk 0:01:55.8]} 20... Rfd8 {[%clk
0:01:59.6]} 21. Be3 {[%clk 0:01:52.6]} 21... Nc4 {[%clk 0:01:58]} 22. Bxa7
{[%clk 0:01:24.1]} 22... Nxb2 {[%clk 0:01:56.6]} 23. Rxd8+ {[%clk 0:01:22]}
23... Rxd8 {[%clk 0:01:57.5]} 24. Nd5 {[%clk 0:01:19.6]} 24... Bd3 {[%clk
0:01:46]} 25. Ne7+ {[%clk 0:01:00.6]} 25... Kf8 {[%clk 0:01:42.6]} 26. Nc6
{[%clk 0:01:01.5]} 26... Ra8 {[%clk 0:01:34.9]} 27. Bc5+ {[%clk 0:00:59.9]}
27... Bd6 {[%clk 0:01:33]} 1-0

[Event "Early-Titled-Tuesday-Blitz-March-12-2024"]
[Site "Chess.com"]
[Date "2024.03.12"]
[Round "8"]
[White "Sattarov_Bobur"]
[Black "ValentunHulka"]
[Result "1-0"]
[WhiteElo "2811"]
[BlackElo "2720"]
[TimeControl "180+1"]
[EndTime "9:24:24 PDT"]
[Termination "Sattarov_Bobur won by resignation"]

1. e4 {[%clk 0:03:00.9]} 1... c5 {[%clk 0:02:59]} 2. Nf3 {[%clk 0:03:00.5]} 2...
Nf6 {[%clk 0:02:59]} 3. e5 {[%clk 0:02:58.1]} 3... Nd5 {[%clk 0:02:59.2]} 4. Nc3
{[%clk 0:02:58.8]} 4... e6 {[%clk 0:02:59.9]} 5. d4 {[%clk 0:02:54.8]} 5... Nxc3
{[%clk 0:02:58.9]} 6. bxc3 {[%clk 0:02:54.7]} 6... d5 {[%clk 0:02:59.8]} 7. h4
{[%clk 0:02:53.2]} 7... Nc6 {[%clk 0:02:58.3]} 8. h5 {[%clk 0:02:53]} 8... h6
{[%clk 0:02:58.3]} 9. Bd3 {[%clk 0:02:46.4]} 9... Qa5 {[%clk 0:02:53.1]} 10. Bd2
{[%clk 0:02:45.2]} 10... c4 {[%clk 0:02:50.2]} 11. Bf1 {[%clk 0:02:45]} 11...
Bd7 {[%clk 0:02:49.7]} 12. g4 {[%clk 0:02:42.4]} 12... Qa4 {[%clk 0:02:48.3]}
13. Bh3 {[%clk 0:02:41.2]} 13... O-O-O {[%clk 0:02:44.8]} 14. O-O {[%clk
0:02:37]} 14... Be7 {[%clk 0:02:39.2]} 15. Kg2 {[%clk 0:02:34.4]} 15... g5
{[%clk 0:02:35.3]} 16. Ng1 {[%clk 0:02:20.5]} 16... f6 {[%clk 0:02:28.6]} 17.
exf6 {[%clk 0:02:20]} 17... Bxf6 {[%clk 0:02:26.1]} 18. f4 {[%clk 0:02:20.6]}
18... e5 {[%clk 0:02:08.7]} 19. fxe5 {[%clk 0:02:15.3]} 19... Be7 {[%clk
0:01:45.4]} 20. Ne2 {[%clk 0:02:05]} 20... Be6 {[%clk 0:01:38.4]} 21. Ng3 {[%clk
0:02:04.4]} 21... Nxe5 {[%clk 0:01:34.1]} 22. Re1 {[%clk 0:01:57.6]} 22... Bd6
{[%clk 0:01:15.9]} 23. dxe5 {[%clk 0:01:56.8]} 23... Bc5 {[%clk 0:01:16.5]} 24.
Be3 {[%clk 0:01:53.3]} 24... Bxe3 {[%clk 0:01:12.5]} 25. Rxe3 {[%clk 0:01:54.2]}
25... d4 {[%clk 0:01:11.2]} 26. cxd4 {[%clk 0:01:54.8]} 26... c3 {[%clk
0:01:11.2]} 27. Rxc3+ {[%clk 0:01:54.3]} 27... Kb8 {[%clk 0:01:11.6]} 28. Rd3
{[%clk 0:01:51.7]} 28... Rc8 {[%clk 0:01:09.3]} 29. Rc1 {[%clk 0:01:47.4]} 29...
Rhd8 {[%clk 0:01:08.7]} 30. Kh2 {[%clk 0:01:44.8]} 30... Bxa2 {[%clk 0:01:01.6]}
31. Bg2 {[%clk 0:01:43.7]} 31... Bc4 {[%clk 0:01:01.2]} 32. Ra1 {[%clk
0:01:36.2]} 32... Qb4 {[%clk 0:00:57.4]} 33. Rb1 {[%clk 0:01:34.3]} 1-0

[Event "Early-Titled-Tuesday-Blitz-March-12-2024"]
[Site "Chess.com"]
[Date "2024.03.12"]
[Round "8"]
[White "Hikaru"]
[Black "Jospem"]
[Result "1-0"]
[WhiteElo "3237"]
[BlackElo "3128"]
[TimeControl "180+1"]
[EndTime "9:24:49 PDT"]
[Termination "Hikaru won by resignation"]

1. d4 {[%clk 0:03:00.9]} 1... Nf6 {[%clk 0:02:57.7]} 2. c4 {[%clk 0:03:00.7]}
2... e6 {[%clk 0:02:58.2]} 3. Nc3 {[%clk 0:02:59.9]} 3... Bb4 {[%clk 0:02:58.6]}
4. Qc2 {[%clk 0:02:59.5]} 4... d6 {[%clk 0:02:58.6]} 5. e4 {[%clk 0:02:58.3]}
5... c5 {[%clk 0:02:57.8]} 6. a3 {[%clk 0:02:54.1]} 6... Bxc3+ {[%clk 0:02:56]}
7. bxc3 {[%clk 0:02:55]} 7... Nc6 {[%clk 0:02:55.2]} 8. Nf3 {[%clk 0:02:54.4]}
8... e5 {[%clk 0:02:55.3]} 9. d5 {[%clk 0:02:54.8]} 9... Ne7 {[%clk 0:02:55.3]}
10. g3 {[%clk 0:02:53]} 10... O-O {[%clk 0:02:52.2]} 11. Bg2 {[%clk 0:02:53.1]}
11... h6 {[%clk 0:02:51.2]} 12. O-O {[%clk 0:02:49.1]} 12... Nh7 {[%clk
0:02:34.3]} 13. Nh4 {[%clk 0:02:40.4]} 13... Ng6 {[%clk 0:02:19.1]} 14. Nxg6
{[%clk 0:02:31.2]} 14... fxg6 {[%clk 0:02:20]} 15. f4 {[%clk 0:02:31.2]} 15...
exf4 {[%clk 0:02:00.8]} 16. gxf4 {[%clk 0:02:30.3]} 16... g5 {[%clk 0:01:58.3]}
17. e5 {[%clk 0:02:30.2]} 17... Bf5 {[%clk 0:01:57]} 18. Qe2 {[%clk 0:02:25.5]}
18... gxf4 {[%clk 0:01:51.4]} 19. e6 {[%clk 0:02:10.9]} 19... Qf6 {[%clk
0:01:49.9]} 20. Bxf4 {[%clk 0:02:08.1]} 20... Qxc3 {[%clk 0:01:34.7]} 21. Bxd6
{[%clk 0:01:41.5]} 21... Bd3 {[%clk 0:01:34.9]} 22. Qe3 {[%clk 0:01:41.6]} 22...
Rxf1+ {[%clk 0:01:12.8]} 23. Rxf1 {[%clk 0:01:41]} 23... Qxc4 {[%clk 0:01:13.3]}
24. Rc1 {[%clk 0:01:38.2]} 24... Qd4 {[%clk 0:01:09.2]} 25. Qxd4 {[%clk
0:01:31.2]} 25... cxd4 {[%clk 0:01:10.1]} 26. Be5 {[%clk 0:01:29.9]} 26... Bf5
{[%clk 0:01:04.8]} 27. Bxd4 {[%clk 0:01:22.1]} 27... Nf6 {[%clk 0:00:51.8]} 28.
Bxf6 {[%clk 0:01:11.8]} 28... gxf6 {[%clk 0:00:52.2]} 29. Rc7 {[%clk 0:01:07.3]}
1-0

[Event "Early-Titled-Tuesday-Blitz-March-12-2024"]
[Site "Chess.com"]
[Date "2024.03.12"]
[Round "8"]
[White "ValeriyGrinev"]
[Black "Zheenbekov86"]
[Result "1-0"]
[WhiteElo "2577"]
[BlackElo "2431"]
[TimeControl "180+1"]
[EndTime "9:24:52 PDT"]
[Termination "ValeriyGrinev won by resignation"]

1. d4 {[%clk 0:02:56.9]} 1... Nf6 {[%clk 0:02:58.9]} 2. c4 {[%clk 0:02:56.5]}
2... d6 {[%clk 0:02:58.9]} 3. Nc3 {[%clk 0:02:56]} 3... Nbd7 {[%clk 0:02:58.9]}
4. Nf3 {[%clk 0:02:55.3]} 4... e5 {[%clk 0:02:58.8]} 5. Bg5 {[%clk 0:02:55.9]}
5... Be7 {[%clk 0:02:58.4]} 6. e3 {[%clk 0:02:56]} 6... O-O {[%clk 0:02:58.3]}
7. Qc2 {[%clk 0:02:56.1]} 7... c6 {[%clk 0:02:56.3]} 8. Be2 {[%clk 0:02:53.3]}
8... Re8 {[%clk 0:02:56.1]} 9. O-O {[%clk 0:02:49.4]} 9... Qc7 {[%clk
0:02:56.2]} 10. b4 {[%clk 0:02:48.9]} 10... Nf8 {[%clk 0:02:55.7]} 11. c5 {[%clk
0:02:40.2]} 11... exd4 {[%clk 0:02:55.1]} 12. exd4 {[%clk 0:02:40]} 12... dxc5
{[%clk 0:02:44.6]} 13. dxc5 {[%clk 0:02:38.8]} 13... Ng6 {[%clk 0:02:39.5]} 14.
Bc4 {[%clk 0:02:37.8]} 14... Bg4 {[%clk 0:02:32.4]} 15. Qb3 {[%clk 0:02:35.6]}
15... Rf8 {[%clk 0:02:25.7]} 16. Ne2 {[%clk 0:02:26.5]} 16... Bxf3 {[%clk
0:02:19.1]} 17. Qxf3 {[%clk 0:02:25.1]} 17... h6 {[%clk 0:02:17.5]} 18. Qf5
{[%clk 0:02:12.4]} 18... Ne5 {[%clk 0:02:13.2]} 19. Bf4 {[%clk 0:02:10.7]} 19...
Nfd7 {[%clk 0:02:05.1]} 20. Rad1 {[%clk 0:02:10.3]} 20... Bf6 {[%clk 0:01:57.4]}
21. Rd6 {[%clk 0:01:57.2]} 21... Nxc4 {[%clk 0:01:22.8]} 22. Rxd7 {[%clk
0:01:56.8]} 22... Qc8 {[%clk 0:01:20.2]} 23. Rfd1 {[%clk 0:01:55.5]} 23... b5
{[%clk 0:01:06.4]} 24. Bxh6 {[%clk 0:01:53.8]} 24... a5 {[%clk 0:01:04.9]} 25.
Nf4 {[%clk 0:01:45.5]} 25... axb4 {[%clk 0:00:45.2]} 26. Nh5 {[%clk 0:01:43.4]}
26... Bc3 {[%clk 0:00:41.8]} 27. Bxg7 {[%clk 0:01:42]} 27... Rxa2 {[%clk
0:00:25]} 28. Bxc3 {[%clk 0:01:39.7]} 1-0

[Event "Early-Titled-Tuesday-Blitz-March-12-2024"]
[Site "Chess.com"]
[Date "2024.03.12"]
[Round "8"]
[White "toninhojit"]
[Black "mikheeva86"]
[Result "0-1"]
[WhiteElo "2520"]
[BlackElo "2336"]
[TimeControl "180+1"]
[EndTime "9:25:02 PDT"]
[Termination "mikheeva86 won by resignation"]

1. d4 {[%clk 0:03:00.9]} 1... d5 {[%clk 0:02:59.4]} 2. c4 {[%clk 0:03:01.1]}
2... e6 {[%clk 0:03:00.1]} 3. Nc3 {[%clk 0:03:01.6]} 3... Nf6 {[%clk 0:03:00.7]}
4. cxd5 {[%clk 0:03:02.2]} 4... exd5 {[%clk 0:03:00.6]} 5. Bg5 {[%clk
0:03:02.4]} 5... Be7 {[%clk 0:03:00.9]} 6. Qc2 {[%clk 0:03:02.8]} 6... Nbd7
{[%clk 0:03:01.4]} 7. e3 {[%clk 0:03:03.4]} 7... O-O {[%clk 0:02:56.6]} 8. Bd3
{[%clk 0:03:02.8]} 8... c6 {[%clk 0:02:56.4]} 9. Nge2 {[%clk 0:03:03]} 9... Re8
{[%clk 0:02:56.6]} 10. O-O {[%clk 0:03:02.5]} 10... Nf8 {[%clk 0:02:56.5]} 11.
f3 {[%clk 0:03:01.7]} 11... g6 {[%clk 0:02:52.3]} 12. Rae1 {[%clk 0:02:57.9]}
12... Ne6 {[%clk 0:02:50.8]} 13. Bh4 {[%clk 0:02:57.6]} 13... Ng7 {[%clk
0:02:51.5]} 14. Bf2 {[%clk 0:02:57.1]} 14... Bf5 {[%clk 0:02:50.6]} 15. e4
{[%clk 0:02:54.8]} 15... dxe4 {[%clk 0:02:44.6]} 16. fxe4 {[%clk 0:02:55.7]}
16... Be6 {[%clk 0:02:43.2]} 17. Nf4 {[%clk 0:02:49.6]} 17... Ng4 {[%clk
0:02:42]} 18. Nxe6 {[%clk 0:02:48.2]} 18... Nxe6 {[%clk 0:02:41.7]} 19. d5
{[%clk 0:02:41.8]} 19... cxd5 {[%clk 0:02:25.5]} 20. exd5 {[%clk 0:02:38.7]}
20... Ng7 {[%clk 0:02:16.3]} 21. Bd4 {[%clk 0:02:31]} 21... Qc7 {[%clk
0:02:12.1]} 22. g3 {[%clk 0:02:23.2]} 22... Bc5 {[%clk 0:02:11.8]} 23. Qa4
{[%clk 0:02:06]} 23... Qb6 {[%clk 0:02:05]} 24. Rxe8+ {[%clk 0:01:43.3]} 24...
Rxe8 {[%clk 0:02:03.5]} 25. Rf4 {[%clk 0:01:44.2]} 25... Re1+ {[%clk 0:01:49.2]}
26. Kg2 {[%clk 0:01:42.3]} 26... Qxb2+ {[%clk 0:01:44.2]} 27. Qc2 {[%clk
0:01:28.9]} 27... Qxc2+ {[%clk 0:01:40.6]} 28. Bxc2 {[%clk 0:01:29.8]} 28...
Bxd4 {[%clk 0:01:40.8]} 29. Rxg4 {[%clk 0:01:21.4]} 29... Bxc3 {[%clk
0:01:37.7]} 30. Rc4 {[%clk 0:01:22]} 30... Ba5 {[%clk 0:01:34.9]} 31. d6 {[%clk
0:01:15.8]} 31... Ne6 {[%clk 0:01:24.8]} 32. d7 {[%clk 0:01:11.3]} 32... Kg7
{[%clk 0:01:24.3]} 33. Bb3 {[%clk 0:01:07.1]} 33... Re2+ {[%clk 0:01:21.5]} 34.
Kf3 {[%clk 0:01:05.6]} 34... Rd2 {[%clk 0:01:21.7]} 35. Ra4 {[%clk 0:01:01.9]}
35... Bb6 {[%clk 0:01:13.5]} 0-1

[Event "Early-Titled-Tuesday-Blitz-March-12-2024"]
[Site "Chess.com"]
[Date "2024.03.12"]
[Round "8"]
[White "RandomNoob04"]
[Black "Danny_Billiards"]
[Result "0-1"]
[WhiteElo "2620"]
[BlackElo "2795"]
[TimeControl "180+1"]
[EndTime "9:25:04 PDT"]
[Termination "Danny_Billiards won on time"]

1. e4 {[%clk 0:03:00.9]} 1... e6 {[%clk 0:02:59.8]} 2. d4 {[%clk 0:03:01.3]}
2... d5 {[%clk 0:03:00.7]} 3. e5 {[%clk 0:03:02]} 3... c5 {[%clk 0:03:00.5]} 4.
c3 {[%clk 0:03:02.5]} 4... Nc6 {[%clk 0:03:00.2]} 5. Nf3 {[%clk 0:03:03.2]} 5...
Qc7 {[%clk 0:03:00.3]} 6. a3 {[%clk 0:02:43]} 6... c4 {[%clk 0:03:00.4]} 7. Be2
{[%clk 0:02:38.5]} 7... Na5 {[%clk 0:03:00.2]} 8. Nbd2 {[%clk 0:02:36.4]} 8...
Bd7 {[%clk 0:03:00.9]} 9. O-O {[%clk 0:02:35.8]} 9... Ne7 {[%clk 0:02:57.5]} 10.
Re1 {[%clk 0:02:23.9]} 10... Nc8 {[%clk 0:02:56.9]} 11. Rb1 {[%clk 0:01:55.2]}
11... Nb6 {[%clk 0:02:56.6]} 12. Nf1 {[%clk 0:01:49.4]} 12... h6 {[%clk
0:02:45.6]} 13. Qd2 {[%clk 0:01:39.5]} 13... g5 {[%clk 0:02:41.6]} 14. h4 {[%clk
0:01:37.1]} 14... Nb3 {[%clk 0:02:37.1]} 15. Qe3 {[%clk 0:01:37]} 15... O-O-O
{[%clk 0:02:32.9]} 16. hxg5 {[%clk 0:01:35.8]} 16... hxg5 {[%clk 0:02:32.6]} 17.
Qxg5 {[%clk 0:01:26.9]} 17... Bh6 {[%clk 0:02:25.9]} 18. Qxh6 {[%clk 0:01:20.8]}
18... Rxh6 {[%clk 0:02:26.8]} 19. Bxh6 {[%clk 0:01:21.1]} 19... Rg8 {[%clk
0:02:21.1]} 20. Ng3 {[%clk 0:01:16]} 20... Ba4 {[%clk 0:02:12.1]} 21. Bg5 {[%clk
0:01:08.7]} 21... Na5 {[%clk 0:02:09.4]} 22. Rbc1 {[%clk 0:01:09]} 22... Nb3
{[%clk 0:02:05.5]} 23. Rb1 {[%clk 0:01:09.6]} 23... Na5 {[%clk 0:02:06.1]} 24.
Bf6 {[%clk 0:00:57.6]} 24... Bc2 {[%clk 0:02:05.4]} 25. Rbc1 {[%clk 0:00:58.2]}
25... Bg6 {[%clk 0:02:06.3]} 26. Nh4 {[%clk 0:00:48.8]} 26... Bh7 {[%clk
0:02:06.8]} 27. Bd1 {[%clk 0:00:19.4]} 27... Nb3 {[%clk 0:02:06.9]} 28. Bxb3
{[%clk 0:00:20]} 28... cxb3 {[%clk 0:02:07.8]} 29. Nf3 {[%clk 0:00:12.8]} 29...
Nc4 {[%clk 0:02:07.8]} 30. Re2 {[%clk 0:00:13.4]} 30... Bd3 {[%clk 0:02:08]} 31.
Ree1 {[%clk 0:00:13.8]} 31... Nxb2 {[%clk 0:02:08.1]} 32. Ng5 {[%clk 0:00:09.4]}
32... Nc4 {[%clk 0:02:06.5]} 33. Rcd1 {[%clk 0:00:04.2]} 33... Bc2 {[%clk
0:02:06.2]} 34. Rc1 {[%clk 0:00:05]} 34... Bg6 {[%clk 0:02:06.9]} 35. Rcd1
{[%clk 0:00:04.2]} 35... b2 {[%clk 0:02:05.7]} 36. Ne2 {[%clk 0:00:03]} 36...
Nxa3 {[%clk 0:02:05.8]} 37. Nf4 {[%clk 0:00:02]} 37... b1=Q {[%clk 0:02:06.3]}
38. Rxb1 {[%clk 0:00:02.2]} 38... Bxb1 {[%clk 0:02:05.9]} 0-1

[Event "Early-Titled-Tuesday-Blitz-March-12-2024"]
[Site "Chess.com"]
[Date "2024.03.12"]
[Round "8"]
[White "venturov"]
[Black "Ural_bogatyr"]
[Result "0-1"]
[WhiteElo "2480"]
[BlackElo "2605"]
[TimeControl "180+1"]
[EndTime "9:25:07 PDT"]
[Termination "Ural_bogatyr won by resignation"]

1. e4 {[%clk 0:03:00.9]} 1... e5 {[%clk 0:02:59.4]} 2. Bc4 {[%clk 0:02:57.6]}
2... Nf6 {[%clk 0:02:58.5]} 3. Nc3 {[%clk 0:02:57]} 3... Nc6 {[%clk 0:02:55.8]}
4. d3 {[%clk 0:02:57.3]} 4... Na5 {[%clk 0:02:51.4]} 5. Nf3 {[%clk 0:02:54.4]}
5... Nxc4 {[%clk 0:02:46.9]} 6. dxc4 {[%clk 0:02:54]} 6... Bb4 {[%clk
0:02:43.3]} 7. Qd3 {[%clk 0:02:44.8]} 7... d6 {[%clk 0:02:39.1]} 8. Bd2 {[%clk
0:02:40.7]} 8... h6 {[%clk 0:02:34.8]} 9. O-O-O {[%clk 0:02:36]} 9... Be6 {[%clk
0:02:27.1]} 10. Nd5 {[%clk 0:02:31.8]} 10... Bxd2+ {[%clk 0:02:24.7]} 11. Nxd2
{[%clk 0:02:23.7]} 11... Nd7 {[%clk 0:02:24]} 12. Qg3 {[%clk 0:02:19.3]} 12...
O-O {[%clk 0:02:22.7]} 13. h4 {[%clk 0:02:09.8]} 13... f5 {[%clk 0:02:21.7]} 14.
f4 {[%clk 0:02:07.6]} 14... fxe4 {[%clk 0:02:16.1]} 15. Nxe4 {[%clk 0:02:05.4]}
15... Bxd5 {[%clk 0:02:13.1]} 16. cxd5 {[%clk 0:01:56.1]} 16... Rxf4 {[%clk
0:02:12.4]} 17. Nc3 {[%clk 0:01:51]} 17... Qf6 {[%clk 0:02:05]} 18. Kb1 {[%clk
0:01:46.6]} 18... Rf8 {[%clk 0:02:04]} 19. Nb5 {[%clk 0:01:39.9]} 19... Qd8
{[%clk 0:01:47.7]} 20. Nxa7 {[%clk 0:01:22.8]} 20... Nc5 {[%clk 0:01:47.6]} 21.
Nb5 {[%clk 0:01:21.1]} 21... Rb4 {[%clk 0:01:46.1]} 22. Nc3 {[%clk 0:01:16.9]}
22... Qa8 {[%clk 0:01:42.3]} 23. Rhf1 {[%clk 0:01:06.4]} 23... Rxf1 {[%clk
0:01:35.8]} 24. Rxf1 {[%clk 0:01:07.3]} 24... Qa3 {[%clk 0:01:35.9]} 25. b3
{[%clk 0:01:03.5]} 25... Na4 {[%clk 0:01:26.4]} 26. Nd1 {[%clk 0:00:37.8]} 26...
Rd4 {[%clk 0:01:20.4]} 27. bxa4 {[%clk 0:00:22]} 27... Qxg3 {[%clk 0:01:16.2]}
0-1

[Event "Early-Titled-Tuesday-Blitz-March-12-2024"]
[Site "Chess.com"]
[Date "2024.03.12"]
[Round "8"]
[White "ahkashefi2800"]
[Black "Casper"]
[Result "1-0"]
[WhiteElo "2634"]
[BlackElo "2492"]
[TimeControl "180+1"]
[EndTime "9:25:13 PDT"]
[Termination "ahkashefi2800 won by resignation"]

1. e4 {[%clk 0:02:59.4]} 1... g6 {[%clk 0:01:34.3]} 2. d4 {[%clk 0:02:57.4]}
2... Bg7 {[%clk 0:01:35.2]} 3. Nc3 {[%clk 0:02:50.3]} 3... d6 {[%clk 0:01:36.1]}
4. f4 {[%clk 0:02:49.9]} 4... Nc6 {[%clk 0:01:36]} 5. Be3 {[%clk 0:02:48]} 5...
e5 {[%clk 0:01:34.4]} 6. fxe5 {[%clk 0:02:39.3]} 6... dxe5 {[%clk 0:01:35.3]} 7.
d5 {[%clk 0:02:39.9]} 7... Nd4 {[%clk 0:01:34.1]} 8. Nf3 {[%clk 0:02:27.4]} 8...
Bg4 {[%clk 0:01:23]} 9. Be2 {[%clk 0:02:27.1]} 9... Nxe2 {[%clk 0:01:20.9]} 10.
Qxe2 {[%clk 0:02:26.5]} 10... Ne7 {[%clk 0:01:16]} 11. O-O-O {[%clk 0:02:26.5]}
11... O-O {[%clk 0:01:15]} 12. h3 {[%clk 0:02:25.8]} 12... Bxf3 {[%clk
0:01:14.9]} 13. gxf3 {[%clk 0:02:12]} 13... f5 {[%clk 0:01:02.5]} 14. h4 {[%clk
0:02:09.9]} 14... fxe4 {[%clk 0:00:36.5]} 15. fxe4 {[%clk 0:02:03.2]} 15... a6
{[%clk 0:00:32.2]} 16. h5 {[%clk 0:02:02.3]} 16... Qd6 {[%clk 0:00:32.2]} 17.
hxg6 {[%clk 0:01:56]} 17... hxg6 {[%clk 0:00:21.1]} 18. Qh2 {[%clk 0:01:54]}
18... Kf7 {[%clk 0:00:18.9]} 19. Qh7 {[%clk 0:01:48.9]} 19... Rg8 {[%clk
0:00:04.3]} 20. Rhf1+ {[%clk 0:01:35.9]} 20... Ke8 {[%clk 0:00:04.4]} 21. Bg5
{[%clk 0:01:25.1]} 21... Kd7 {[%clk 0:00:04.7]} 22. Rf7 {[%clk 0:01:23.1]} 22...
Rae8 {[%clk 0:00:03.2]} 23. Rxg7 {[%clk 0:01:21.3]} 1-0

[Event "Early-Titled-Tuesday-Blitz-March-12-2024"]
[Site "Chess.com"]
[Date "2024.03.12"]
[Round "8"]
[White "Oleksandr_Bortnyk"]
[Black "GMKrikor"]
[Result "1-0"]
[WhiteElo "3007"]
[BlackElo "2873"]
[TimeControl "180+1"]
[EndTime "9:25:17 PDT"]
[Termination "Oleksandr_Bortnyk won by resignation"]

1. e4 {[%clk 0:03:00.9]} 1... c5 {[%clk 0:02:59.6]} 2. c3 {[%clk 0:03:01.1]}
2... d5 {[%clk 0:02:58.9]} 3. exd5 {[%clk 0:03:02]} 3... Qxd5 {[%clk 0:02:59.4]}
4. d4 {[%clk 0:03:02.6]} 4... g6 {[%clk 0:02:59.7]} 5. Be3 {[%clk 0:03:02.7]}
5... cxd4 {[%clk 0:02:48]} 6. cxd4 {[%clk 0:02:58.5]} 6... Bg7 {[%clk
0:02:43.4]} 7. Nf3 {[%clk 0:02:58.6]} 7... Nf6 {[%clk 0:02:41.7]} 8. Nc3 {[%clk
0:02:59.2]} 8... Qa5 {[%clk 0:02:40.2]} 9. h3 {[%clk 0:02:59.2]} 9... O-O {[%clk
0:02:39.8]} 10. Bc4 {[%clk 0:02:59.8]} 10... Nbd7 {[%clk 0:02:29.6]} 11. O-O
{[%clk 0:02:58.1]} 11... Nb6 {[%clk 0:02:29.9]} 12. Bb3 {[%clk 0:02:58.5]} 12...
Nbd5 {[%clk 0:02:28.1]} 13. Bd2 {[%clk 0:02:58.9]} 13... Qd8 {[%clk 0:02:20.8]}
14. Re1 {[%clk 0:02:58.4]} 14... b6 {[%clk 0:02:17.1]} 15. Bg5 {[%clk
0:02:56.3]} 15... Bb7 {[%clk 0:02:07.8]} 16. Ne5 {[%clk 0:02:55.8]} 16... Nxc3
{[%clk 0:01:53.4]} 17. bxc3 {[%clk 0:02:55.5]} 17... Ne4 {[%clk 0:01:53.8]} 18.
Nxf7 {[%clk 0:02:35.4]} 18... Rxf7 {[%clk 0:01:35.2]} 19. Bxf7+ {[%clk
0:02:36.3]} 19... Kxf7 {[%clk 0:01:09.2]} 20. Qf3+ {[%clk 0:02:36.7]} 20... Bf6
{[%clk 0:01:09.7]} 21. Bxf6 {[%clk 0:02:19.7]} 21... exf6 {[%clk 0:01:09.4]} 22.
Rxe4 {[%clk 0:02:20.2]} 22... f5 {[%clk 0:01:10.1]} 23. Rae1 {[%clk 0:02:20.2]}
23... Bxe4 {[%clk 0:00:24.6]} 24. Rxe4 {[%clk 0:02:21.1]} 24... Rc8 {[%clk
0:00:24.8]} 25. g4 {[%clk 0:02:20.3]} 25... Rxc3 {[%clk 0:00:21.7]} 26. Qxc3
{[%clk 0:02:15.5]} 26... fxe4 {[%clk 0:00:21.9]} 27. Qc4+ {[%clk 0:02:13.3]}
27... Kf6 {[%clk 0:00:15.5]} 28. Qc6+ {[%clk 0:02:13.2]} 28... Kf7 {[%clk
0:00:12.3]} 29. Qxe4 {[%clk 0:02:13.2]} 29... Qd6 {[%clk 0:00:12.7]} 30. d5
{[%clk 0:02:07.7]} 30... b5 {[%clk 0:00:11.3]} 31. Qf3+ {[%clk 0:02:04.8]} 31...
Ke7 {[%clk 0:00:10]} 32. Qe3+ {[%clk 0:02:05.1]} 32... Kf6 {[%clk 0:00:09.9]}
33. Qd4+ {[%clk 0:01:51.8]} 33... Kg5 {[%clk 0:00:05.6]} 34. f4+ {[%clk
0:01:42.4]} 34... Kh4 {[%clk 0:00:03.9]} 35. Kg2 {[%clk 0:01:37.1]} 1-0

[Event "Early-Titled-Tuesday-Blitz-March-12-2024"]
[Site "Chess.com"]
[Date "2024.03.12"]
[Round "8"]
[White "matagordo"]
[Black "jaskol95"]
[Result "1-0"]
[WhiteElo "2295"]
[BlackElo "2559"]
[TimeControl "180+1"]
[EndTime "9:25:17 PDT"]
[Termination "matagordo won by checkmate"]

1. d4 {[%clk 0:03:00.9]} 1... e6 {[%clk 0:02:58.5]} 2. Bf4 {[%clk 0:02:59]} 2...
f5 {[%clk 0:02:53.2]} 3. e3 {[%clk 0:02:58.8]} 3... Nf6 {[%clk 0:02:53.7]} 4.
Nf3 {[%clk 0:02:58.9]} 4... Be7 {[%clk 0:02:54.4]} 5. Nbd2 {[%clk 0:02:56.5]}
5... O-O {[%clk 0:02:54.8]} 6. Bd3 {[%clk 0:02:56.5]} 6... d6 {[%clk 0:02:51.2]}
7. c3 {[%clk 0:02:50.4]} 7... Qe8 {[%clk 0:02:51.4]} 8. Qb3 {[%clk 0:02:46.4]}
8... Kh8 {[%clk 0:02:44.4]} 9. O-O-O {[%clk 0:02:46.8]} 9... a5 {[%clk
0:02:37.1]} 10. h3 {[%clk 0:02:45.8]} 10... a4 {[%clk 0:02:37.2]} 11. Qc2 {[%clk
0:02:46.1]} 11... b5 {[%clk 0:02:35.1]} 12. g4 {[%clk 0:02:44.8]} 12... Bb7
{[%clk 0:02:28.9]} 13. gxf5 {[%clk 0:02:41.3]} 13... b4 {[%clk 0:02:22.8]} 14.
cxb4 {[%clk 0:02:40]} 14... Nd5 {[%clk 0:02:22.6]} 15. a3 {[%clk 0:02:37.4]}
15... Nxf4 {[%clk 0:02:21.6]} 16. exf4 {[%clk 0:02:38.3]} 16... exf5 {[%clk
0:01:49.3]} 17. Rhg1 {[%clk 0:02:34.7]} 17... Qf7 {[%clk 0:01:35.2]} 18. Ng5
{[%clk 0:02:31.8]} 18... Bxg5 {[%clk 0:01:35.4]} 19. Rxg5 {[%clk 0:02:30.7]}
19... Nc6 {[%clk 0:01:24.1]} 20. Rxf5 {[%clk 0:01:49.7]} 20... Qa2 {[%clk
0:00:55.3]} 21. Rh5 {[%clk 0:01:41.1]} 21... h6 {[%clk 0:00:45.3]} 22. Bc4
{[%clk 0:01:27.2]} 22... Qa1+ {[%clk 0:00:44.6]} 23. Nb1 {[%clk 0:01:27.8]}
23... Rxf4 {[%clk 0:00:42.4]} 24. Qg6 {[%clk 0:01:22.5]} 24... d5 {[%clk
0:00:02]} 25. Rxh6+ {[%clk 0:01:21.5]} 25... gxh6 {[%clk 0:00:02.2]} 26. Qxh6+
{[%clk 0:01:22.4]} 26... Kg8 {[%clk 0:00:02.6]} 27. Bxd5+ {[%clk 0:01:20.9]}
27... Rf7 {[%clk 0:00:02.7]} 28. Rg1# {[%clk 0:01:20.2]} 1-0